Cogmind - Beta 12 @@@ ROGUE MODE // 2023.11.24 @ 21:50:10 Player: Figgis Result: Self-destructed Performance ------------- Evolutions (6) 3000 Regions Visited (20) 4000 Robots Destroyed (156) 780 Value Destroyed (5693) 5693 Prototype IDs (52) 1040 Alien Tech Used (3) 600 Bonus (2704) 2704 TOTAL SCORE: 17817 Bonus ------- High Alert Combat Kills 985 Follower Combat Kills 319 Entered DSFs 500 Aligned with FarCom 300 Met Data Miner 300 Met Zhirov 300 Cogmind --------- Core Integrity 1070/1150 Matter 300/300 Energy 149/150 System Corruption 1% Temperature Cool (2) Movement Flying (120) Ox1 Location -4/Factory Parts ------- > --- POWER (2) -------- Micro Nuclear Core > --- PROPULSION (5) --- Nuclear Pulse Thruster > --- UTILITY (7) ------ Advanced Heat Sink Improved Coolant Injector Enhanced Optical Array Improved Sensor Array Hacking Suite Advanced System Shield > --- WEAPON (5) ------- Powered Hammer > --- INVENTORY (5) ---- Advanced Myomer Leg Advanced Myomer Leg Advanced Myomer Leg Advanced Shield Generator Mapping Drone Bay (3/3) Peak State ------------ > --- POWER ------------ Micro Nuclear Core Makeshift Power Source > --- PROPULSION ------- Advanced Myomer Leg Advanced Myomer Leg Advanced Myomer Leg Nuclear Pulse Thruster > --- UTILITY ---------- Coolant Injector Enhanced Optical Array Improved Sensor Array Particle Accelerator Improved Reaction Control System Advanced System Shield > --- WEAPON ----------- Powered Hammer > --- INVENTORY -------- Advanced Heat Sink Advanced Shield Generator System Restoration Module Mapping Drone Bay Cooled Particle Cannon [Rating: 74] Favorites ----------- Power Ion Engine Engine Ion Engine Power Core Light Fission Core Reactor Antimatter Reactor Propulsion VSS Leg Leg VSS Leg Hover Unit Gravmag System Flight Unit Nuclear Pulse Thruster Utility Improved Targeting Computer Device Advanced Heat Sink Storage Large Storage Unit Processor Improved Targeting Computer Hackware Advanced System Shield Protection Light Armor Plating Weapon XL Autogun Subcomponent Energy Gun Cooled Pulse Rifle Energy Cannon Plasma Cannon Ballistic Gun XL Autogun Subcomponent Ballistic Cannon Assault Cannon Special Weapon Molecular Deconstructor Impact Weapon Powered Hammer Slashing Weapon Master Tearclaws Build | -11 -10 -10 -9 -9 -9 -8 -8 -7 -7 -7 -7 -6 -6 -6 -5 -5 -5 -5 -4 -4 ------- Run | Jun Mat Min Mat Min Exi Min Mat Fac Low Low Dat Pro Fac DSF Fac Upp Upp Zhi Pro Fac Slots Evolved 12 | . . . 2 . . . 2 2 . . . . 2 . 2 . . . . 2 Power 1 | . . . . . . . . . . . . . 1 . . . . . . . Propulsion 3 | . . . 1 . . . . 1 . . . . . . . . . . . 1 Utility 5 | . . . 1 . . . 1 . . . . . 1 . 1 . . . . 1 Weapon 3 | . . . . . . . 1 1 . . . . . . 1 . . . . . Parts Attached 150 | 3 4 4 1 6 1 2 21 16 21 9 3 22 12 2 2 1 3 15 . 2 Power 17 | . 1 . . 2 . . 1 3 2 2 . 2 1 2 . . 1 . . . Engine 8 | . 1 . . 2 . . . 3 1 . . . . . . . 1 . . . Core 8 | . . . . . . . 1 . 1 2 . 1 1 2 . . . . . . Reactor 1 | . . . . . . . . . . . . 1 . . . . . . . . Propulsion 48 | 2 . 2 . 1 . 1 10 5 3 4 . 7 6 . . 1 . 6 . . Treads . | . . . . . . . . . . . . . . . . . . . . . Leg 37 | 2 . 2 . 1 . 1 10 5 3 4 . 6 . . . . . 3 . . Wheel . | . . . . . . . . . . . . . . . . . . . . . Hover 3 | . . . . . . . . . . . . 1 2 . . . . . . . Flight 8 | . . . . . . . . . . . . . 4 . . 1 . 3 . . Utility 38 | . 2 . 1 1 1 . 4 3 3 1 . 6 4 . 2 . 1 7 . 2 Device 22 | . . . 1 . . . 2 2 2 1 . 3 2 . 1 . 1 6 . 1 Storage 4 | . 2 . . . . . . 1 . . . . . . . . . 1 . . Processor 5 | . . . . . 1 . 2 . . . . 1 1 . . . . . . . Hackware 2 | . . . . . . . . . . . . . . . 1 . . . . 1 Protection 5 | . . . . 1 . . . . 1 . . 2 1 . . . . . . . Artifact . | . . . . . . . . . . . . . . . . . . . . . Weapon 47 | 1 1 2 . 2 . 1 6 5 13 2 3 7 1 . . . 1 2 . . Energy Gun 12 | . . 1 . . . . 5 . 3 . . 3 . . . . . . . . Energy Cannon 4 | . . . . . . . . . 1 . . 1 1 . . . . 1 . . Ballistic Gun 20 | 1 1 . . 1 . 1 1 5 7 . 3 . . . . . . . . . Ballistic Cannon 2 | . . 1 . 1 . . . . . . . . . . . . . . . . Launcher . | . . . . . . . . . . . . . . . . . . . . . Special Weapon 1 | . . . . . . . . . 1 . . . . . . . . . . . Impact Weapon 2 | . . . . . . . . . . . . . . . . . 1 1 . . Slashing Weapon 6 | . . . . . . . . . 1 2 . 3 . . . . . . . . Piercing Weapon . | . . . . . . . . . . . . . . . . . . . . . Special Melee Weapon . | . . . . . . . . . . . . . . . . . . . . . Unidentified Prototypes 9 | . . . . . . . 1 1 1 . . . . . . . 1 5 . . Parts Lost 45 | . . 1 1 . . 1 4 2 3 1 . 26 . . . 1 . . . 5 Power 7 | . . . 1 . . . . 1 1 . . 3 . . . . . . . 1 Propulsion 19 | . . 1 . . . . 2 1 1 1 . 9 . . . 1 . . . 3 Utility 9 | . . . . . . . 2 . 1 . . 5 . . . . . . . 1 Weapon 10 | . . . . . . 1 . . . . . 9 . . . . . . . . Highest Loss Streak 9 | . . 1 1 . . 1 2 1 2 1 . 9 . . . 1 . . . 3 To Critical Strikes 1 | . . . . . . . . . . . . 1 . . . . . . . . Average Slot Usage (%) 89 | . 75 82 63 96 100 99 88 82 96 99 99 92 55 80 70 76 76 73 76 66 Engine 5 | . 10 14 8 11 11 11 8 6 3 . . . . . . . 3 5 5 4 Core 2 | . . . . . . . . . 2 6 7 2 5 13 11 11 6 5 5 5 Leg 26 | . 28 25 22 33 33 33 25 29 29 30 30 28 . . . . . 7 . . Flight 1 | . . . . . . . . . . . . . 2 26 23 23 23 13 23 17 Device 11 | . . . . 11 11 11 8 9 12 15 15 13 18 26 23 23 23 22 23 19 Storage 7 | . 10 14 11 11 11 11 9 7 7 7 7 6 . . . . . . . . Processor 6 | . . . . . 5 11 17 12 7 7 7 2 11 6 5 5 5 5 5 5 Protection 1 | . . . . 7 5 . . . . . . 3 . . . . . . . . Energy Gun 5 | . . 4 11 11 11 11 11 . . . . 8 . . . . . . . . Ballistic Gun 13 | . 26 18 . . . 8 6 13 28 28 29 11 . . . . . . . . Ballistic Cannon 1 | . . 4 11 10 11 1 . . . . . . . . . . . . . . Naked Turns . | . . . . . . . . . . . . . . . . . . . . . Heaviest Build 80 | 1 27 33 33 43 43 40 46 64 64 68 61 80 22 24 24 24 25 22 18 18 Greatest Support 90 | 3 20 20 20 30 30 30 40 51 51 54 54 70 24 24 24 24 24 90 24 24 Greatest Overweight (x) 5 | . 1 2 1 1 1 1 2 1 1 1 1 2 1 . . . 1 5 . . Average Overweight (x) . | . . 1 1 1 1 1 . . 1 . 1 . . . . . . . . . Largest Inventory Capacity 20 | 5 15 15 15 15 15 15 15 20 20 20 20 20 5 5 5 5 5 5 5 5 Average Capacity 16 | 5 11 15 15 15 15 15 15 15 20 20 20 19 5 5 5 5 5 5 5 5 Most Carried 20 | 5 5 14 13 15 15 15 15 15 20 20 20 20 5 5 5 5 5 5 5 5 Average Carried 13 | 3 2 7 10 14 14 15 14 14 17 19 19 12 4 4 5 4 4 4 5 5 Final Capacity 20 | 5 15 15 15 15 15 15 15 20 20 20 20 5 5 5 5 5 5 5 5 5 Final Carried 20 | 5 2 10 12 15 15 15 15 15 19 20 20 4 5 5 5 4 5 5 5 5 Class Distribution -------------------- 46% | Scavenger-Gunner 31% | Mutant 6% | Scavenger-Tank 6% | Scavenger-Mutant 4% | Sprinter 3% | Gunner Dominant Class ---------------- Mutant | -10/Materials Mutant | -10/Mines Mutant | -9/Materials Mutant | -9/Mines Mutant | -9/Exiles Scavenger-Mutant | -8/Mines Scavenger-Gunner | -8/Materials Scavenger-Gunner | -7/Factory Scavenger-Gunner | -7/Lower Caves Scavenger-Gunner | -7/Lower Caves Scavenger-Gunner | -7/Data Miner Scavenger-Tank | -6/Proximity Caves Mutant | -6/Factory Sprinter | -6/DSF Sprinter | -5/Factory Sprinter | -5/Upper Caves Sprinter | -5/Upper Caves Mutant | -5/Zhirov Sprinter | -4/Proximity Caves Hacker-Mutant | -4/Factory Resources | -11 -10 -10 -9 -9 -9 -8 -8 -7 -7 -7 -7 -6 -6 -6 -5 -5 -5 -5 -4 -4 ----------- Run | Jun Mat Min Mat Min Exi Min Mat Fac Low Low Dat Pro Fac DSF Fac Upp Upp Zhi Pro Fac Matter Collected 3878 | 201 36 94 92 102 . 50 210 1220 678 326 . 489 . 145 . . 25 210 . . Remotely . | . . . . . . . . . . . . . . . . . . . . . Salvage Created 6961 | . 36 66 176 100 . 25 2686 1873 394 501 . 862 . . . . . 242 . . Parts 391 | . 4 6 19 8 . 2 147 107 24 36 . 38 . . . . . . . . Haulers Intercepted 2 | . . . . . . . 2 . . . . . . . . . . . . . Recyclers Shooed 1 | . . . . . . . 1 . . . . . . . . . . . . . Parts Field Recycled . | . . . . . . . . . . . . . . . . . . . . . Retrieved Matter . | . . . . . . . . . . . . . . . . . . . . . Parts Self-Destructed 92 | . . . . . . . . . 19 25 . 46 . . . . 2 . . . Prevented 7 | . . . . . . . . . 1 . . . . . . . 2 . 4 . Kills | -11 -10 -10 -9 -9 -9 -8 -8 -7 -7 -7 -7 -6 -6 -6 -5 -5 -5 -5 -4 -4 ------- Run | Jun Mat Min Mat Min Exi Min Mat Fac Low Low Dat Pro Fac DSF Fac Upp Upp Zhi Pro Fac Combat Hostiles Destroyed 132 | . 3 2 7 3 . 2 53 29 7 11 . 15 . . . . . . . . Guns 121 | . 3 2 5 1 . 1 49 29 7 11 . 13 . . . . . . . . Cannons 6 | . . . 2 2 . 1 . . . . . 1 . . . . . . . . AOE 3 | . . . . . . . 3 . . . . . . . . . . . . . Classes Destroyed 20 | . 1 1 1 2 . . 9 4 . 1 . 1 . . . . . . . . Worker 4 | . . . . . . . 2 2 . . . . . . . . . . . . Builder 4 | . . . . . . . 2 2 . . . . . . . . . . . . Tunneler 2 | . . . . . . . 1 1 . . . . . . . . . . . . Hauler 2 | . . . . . . . 2 . . . . . . . . . . . . . Recycler 4 | . . . . . . . . 4 . . . . . . . . . . . . Mechanic 1 | . . . . . . . 1 . . . . . . . . . . . . . Operator 1 | . . . . . . . . 1 . . . . . . . . . . . . Watcher 11 | . . . 2 . . . 4 5 . . . . . . . . . . . . Swarmer 32 | . 3 . 4 1 . 2 10 7 . 2 . 3 . . . . . . . . Grunt 56 | . . 2 3 . . . 28 14 . 4 . 5 . . . . . . . . Brawler 4 | . . . . . . . 2 . . . . 2 . . . . . . . . Duelist 5 | . . . . 1 . . 3 . . . . 1 . . . . . . . . Protector 1 | . . . . . . . 1 . . . . . . . . . . . . . Sentry 16 | . . . . 1 . . 6 5 . 1 . 3 . . . . . . . . Specialist 5 | . . . . . . . 2 . 3 . . . . . . . . . . . Hunter 6 | . . . . . . . . 2 2 2 . . . . . . . . . . Programmer 3 | . . . . . . . . 1 2 . . . . . . . . . . . Heavy 1 | . . . . . . . 1 . . . . . . . . . . . . . Behemoth 1 | . . . . . . . . . . . . 1 . . . . . . . . Master Thief 2 | . . . . . . . . . . 2 . . . . . . . . . . Best Kill Streak 17 | . 3 2 7 1 . 2 17 9 1 6 . 4 . . . . . . . . Combat Bots Only 11 | . 3 2 6 1 . 2 11 7 1 6 . 4 . . . . . . . . Max Kills in Single Turn 4 | . 1 1 1 1 . 1 4 2 1 2 . 2 . . . . . . . . Gunslinging 1 | . . . . . . . . . . 1 . 1 . . . . . . . . Exploded 2 | . . . . . . . 2 . . . . . . . . . . . . . Melee . | . . . . . . . . . . . . . . . . . . . . . Uniques/NPCs Destroyed . | . . . . . . . . . . . . . . . . . . . . . Combat | -11 -10 -10 -9 -9 -9 -8 -8 -7 -7 -7 -7 -6 -6 -6 -5 -5 -5 -5 -4 -4 -------- Run | Jun Mat Min Mat Min Exi Min Mat Fac Low Low Dat Pro Fac DSF Fac Upp Upp Zhi Pro Fac Damage Taken 7179 | . 80 419 133 82 . 100 1455 834 387 224 . 2876 . 59 46 108 17 . 44 315 Core 1117 | . 14 82 21 . . 31 262 83 . 13 . 422 . 59 29 21 . . . 80 Absorbed by Shields 147 | . . . . . . . . 119 28 . . . . . . . . . . . Redirected to Shielding 39 | . . . . . . . . . . . . 39 . . . . . . . . Regen/Repaired (Parts) 538 | . . . 90 . . . 139 271 . . . . 38 . . . . . . . Core Remaining (%) 72 | 100 . 61 . . . 87 52 . . . . 26 . 93 . . . . 85 . Volleys Fired 308 | . 13 7 18 7 . 6 49 82 43 27 . 55 . . . . 1 . . . Largest 4 | . 2 2 2 2 . 2 3 4 4 4 . 4 . . . . 1 . . . Hottest 140 | . 40 40 107 107 . 107 69 80 140 80 . 140 . . . . 90 . . . Shots Fired 863 | . 26 14 36 14 . 9 230 125 159 108 . 141 . . . . 1 . . . Gun 815 | . 26 14 18 7 . 6 230 125 156 108 . 125 . . . . . . . . Cannon 48 | . . . 18 7 . 3 . . 3 . . 16 . . . . 1 . . . Launcher . | . . . . . . . . . . . . . . . . . . . . . Special . | . . . . . . . . . . . . . . . . . . . . . Kinetic 678 | . 26 14 18 7 . 3 149 125 146 108 . 82 . . . . . . . . Thermal 185 | . . . 18 7 . 6 81 . 13 . . 59 . . . . 1 . . . Explosive . | . . . . . . . . . . . . . . . . . . . . . Electromagnetic . | . . . . . . . . . . . . . . . . . . . . . Robot Hit Streak 20 | . 3 3 5 3 . 2 20 11 14 11 . 11 . . . . . . . . Robot Miss Streak 10 | . 4 1 6 2 . 2 4 9 4 10 . 5 . . . . . . . . Penetration Max 1 | . . . . . . . 1 . . . . . . . . . . . . . Secondary Targets 10 | . 1 . . . . . 4 . . 3 . 2 . . . . . . . . Max Gunslinging Chain 1 | . 1 . . . . . 1 . . 1 . 1 . . . . . . . . Autonomous 150 | . . . . . . . 150 . . . . . . . . . . . . . Shots Hit Robots 549 | . 12 7 15 7 . 4 189 90 71 54 . 95 . . . . . 4 . 1 Core Hits 261 | . 5 3 8 4 . 2 88 70 20 23 . 37 . . . . . 1 . . Critical Kills . | . . . . . . . . . . . . . . . . . . . . . Critical Parts Destroyed 1 | . . . . . . . 1 . . . . . . . . . . . . . Critical Strikes 8 | . . . 1 . . . 5 . . . . 2 . . . . . . . . Burn 5 | . . . . . . . 3 . . . . 2 . . . . . . . . Destroy 2 | . . . . . . . 2 . . . . . . . . . . . . . Blast 1 | . . . 1 . . . . . . . . . . . . . . . . . Melee Attacks 22 | . . . . . . . . . 1 7 . 8 . . . . . 4 . 2 Impact 6 | . . . . . . . . . . . . . . . . . . 4 . 2 Slashing 16 | . . . . . . . . . 1 7 . 8 . . . . . . . . Piercing . | . . . . . . . . . . . . . . . . . . . . . Sneak Attacks 1 | . . . . . . . . . . . . . . . . . . . . 1 Combat Hostiles 1 | . . . . . . . . . . . . . . . . . . . . 1 Follow-up Attacks 1 | . . . . . . . . . . . . 1 . . . . . . . . Damage Inflicted 15129 | . 103 55 358 144 . 77 5722 3577 1371 1025 . 2122 . . . . . 452 . 123 Guns 13317 | . 103 55 139 51 . 50 5259 3445 1371 1025 . 1819 . . . . . . . . Cannons 577 | . . . 219 93 . 27 . . . . . 238 . . . . . . . . Explosions 595 | . . . . . . . 463 132 . . . . . . . . . . . . Melee 640 | . . . . . . . . . . . . 65 . . . . . 452 . 123 Ramming . | . . . . . . . . . . . . . . . . . . . . . Kinetic 11473 | . 103 55 219 93 . 27 3943 3445 1371 1025 . 1192 . . . . . . . . Thermal 2421 | . . . 139 51 . 50 1316 . . . . 865 . . . . . . . . Explosive 595 | . . . . . . . 463 132 . . . . . . . . . . . . Electromagnetic . | . . . . . . . . . . . . . . . . . . . . . Impact 575 | . . . . . . . . . . . . . . . . . . 452 . 123 Slashing 65 | . . . . . . . . . . . . 65 . . . . . . . . Piercing . | . . . . . . . . . . . . . . . . . . . . . Highest Corruption 2 | . . . . . . . . . 1 . . 2 . . . . . . . . Average Corruption 1 | . . . . . . . . . 1 . . 1 . . . . . . . . Corruption Purged 2 | . . . . . . . . . 2 . . . . . . . . . . . Corruption Blocked . | . . . . . . . . . . . . . . . . . . . . . Effects 4 | . . . . . . . . . 4 . . . . . . . . . . . Matter Fused 1 | . . . . . . . . . 1 . . . . . . . . . . . Heat Flow Errors 1 | . . . . . . . . . 1 . . . . . . . . . . . Data Loss (minor) 1 | . . . . . . . . . 1 . . . . . . . . . . . Misfires 1 | . . . . . . . . . 1 . . . . . . . . . . . Overload Shots 1 | . . . . . . . . . . . . . . . . . 1 . . . Overflow Damage 297 | . . . 21 . . . 19 . . . . . . . . . . 257 . . Projectiles 21 | . . . 21 . . . . . . . . . . . . . . . . . Explosions 19 | . . . . . . . 19 . . . . . . . . . . . . . Melee 257 | . . . . . . . . . . . . . . . . . . 257 . . Knockbacks 9 | . . . 6 . . . . . . . . . . . . . . 2 . 1 Impact 3 | . . . . . . . . . . . . . . . . . . 2 . 1 Kinetic 5 | . . . 5 . . . . . . . . . . . . . . . . . Secondary 1 | . . . 1 . . . . . . . . . . . . . . . . . Self-Inflicted Damage 99 | . . . . . . . . 99 . . . . . . . . . . . . Shots 1 | . . . . . . . . 1 . . . . . . . . . . . . Rammed . | . . . . . . . . . . . . . . . . . . . . . Targets Rammed . | . . . . . . . . . . . . . . . . . . . . . Kicked . | . . . . . . . . . . . . . . . . . . . . . Crushed . | . . . . . . . . . . . . . . . . . . . . . Highest Temperature 209 | . . . 172 . . . 63 199 209 120 . 199 . . . 6 60 1 . . Average Temperature 64 | . . . 67 . . . 31 67 55 52 . 91 . . . 3 7 1 . . Received Heat Transfer 1528 | . . 18 42 24 . 6 531 204 18 45 . 583 . . . 21 . . 9 27 Siege Activations . | . . . . . . . . . . . . . . . . . . . . . Robots Corrupted . | . . . . . . . . . . . . . . . . . . . . . Combat Hostiles . | . . . . . . . . . . . . . . . . . . . . . Parts Fried . | . . . . . . . . . . . . . . . . . . . . . Impact Corruptions 4 | . . . . . . . . . . . . . . . . . . 4 . . Robots Melted 2 | . . . . . . . 1 . . . . 1 . . . . . . . . Combat Hostiles 2 | . . . . . . . 1 . . . . 1 . . . . . . . . Parts Melted 9 | . . . . 1 . . 5 . . . . 3 . . . . . . . . Heat Transferred 4884 | . . . 296 111 . 111 2547 . . . . 1819 . . . . . . . . Parts Sabotaged . | . . . . . . . . . . . . . . . . . . . . . Parts Stolen 5 | . . . . . . . . . 1 4 . . . . . . . . . . Parts Stripped . | . . . . . . . . . . . . . . . . . . . . . Power Chain Reactions . | . . . . . . . . . . . . . . . . . . . . . Missiles Intercepted . | . . . . . . . . . . . . . . . . . . . . . Alert | -11 -10 -10 -9 -9 -9 -8 -8 -7 -7 -7 -7 -6 -6 -6 -5 -5 -5 -5 -4 -4 ------- Run | Jun Mat Min Mat Min Exi Min Mat Fac Low Low Dat Pro Fac DSF Fac Upp Upp Zhi Pro Fac Peak Influence 1083 | . 84 72 196 79 . 211 988 1083 . . . . 48 . 50 . . . . 85 Initial 449 | . . 32 . 8 . . . 449 . . . . . . . . . . . . Average 307 | . 64 12 25 13 . 89 599 801 . . . . 22 . 6 . . . . 25 Maximum Alert Level 3 | . . . . . . 1 3 3 . . . . . . . . . . . . Low Security (%) 62 | 100 100 100 100 100 . 99 19 . . . . . 100 100 100 . . . . 100 Level 1 3 | . . . . . . . 12 . . . . . . . . . . . . . Level 2 10 | . . . . . . . 24 27 . . . . . . . . . . . . Level 3 23 | . . . . . . . 43 72 . . . . . . . . . . . . Level 4 . | . . . . . . . . . . . . . . . . . . . . . Level 5 . | . . . . . . . . . . . . . . . . . . . . . High Security . | . . . . . . . . . . . . . . . . . . . . . Max Security . | . . . . . . . . . . . . . . . . . . . . . Sterilizations 1 | . . . . . . . 1 . . . . . . . . . . . . . Squads Dispatched 20 | . 1 . 1 . . . 8 8 . 1 . . . . . . . . . 1 Investigation 7 | . . . . . . . 1 5 . 1 . . . . . . . . . . Extermination 1 | . . . . . . . . 1 . . . . . . . . . . . . Reinforcement 9 | . 1 . 1 . . . 5 1 . . . . . . . . . . . 1 Assault 3 | . . . . . . . 2 1 . . . . . . . . . . . . Garrison . | . . . . . . . . . . . . . . . . . . . . . Intercept . | . . . . . . . . . . . . . . . . . . . . . Searches Triggered . | . . . . . . . . . . . . . . . . . . . . . Construction Impeded 1 | . . . . . . . 1 . . . . . . . . . . . . . Haulers Reinforced . | . . . . . . . . . . . . . . . . . . . . . Active Scanning Responses . | . . . . . . . . . . . . . . . . . . . . . Cargo Convoy Interrupts . | . . . . . . . . . . . . . . . . . . . . . Stealth | -11 -10 -10 -9 -9 -9 -8 -8 -7 -7 -7 -7 -6 -6 -6 -5 -5 -5 -5 -4 -4 --------- Run | Jun Mat Min Mat Min Exi Min Mat Fac Low Low Dat Pro Fac DSF Fac Upp Upp Zhi Pro Fac Distress Signals 8 | . . 1 3 . . . 2 2 . . . . . . . . . . . . Communications Jammed . | . . . . . . . . . . . . . . . . . . . . . Distress Signals . | . . . . . . . . . . . . . . . . . . . . . Times Spotted 215 | . 6 3 15 9 . 7 59 42 8 13 . 22 . 1 2 10 5 . 1 12 Peak Tracking Total 11 | . 3 1 4 3 . 3 5 5 1 7 . 9 . 2 2 11 5 . 1 10 Tactical Retreats 15 | . . . 1 1 . . . 2 . . . . . . . 4 3 . . 4 Traps | -11 -10 -10 -9 -9 -9 -8 -8 -7 -7 -7 -7 -6 -6 -6 -5 -5 -5 -5 -4 -4 ------- Run | Jun Mat Min Mat Min Exi Min Mat Fac Low Low Dat Pro Fac DSF Fac Upp Upp Zhi Pro Fac Traps Triggered 6 | . . . . . . . 1 2 . . . . . 2 . . . . . 1 Indirectly . | . . . . . . . . . . . . . . . . . . . . . Trap Hack Attempts . | . . . . . . . . . . . . . . . . . . . . . Triggered . | . . . . . . . . . . . . . . . . . . . . . Disarmed . | . . . . . . . . . . . . . . . . . . . . . Reprogrammed . | . . . . . . . . . . . . . . . . . . . . . Reused . | . . . . . . . . . . . . . . . . . . . . . Traps Extracted . | . . . . . . . . . . . . . . . . . . . . . Installed 3 | . . . . . . . . . . . . . . 3 . . . . . . Triggered 9 | . . . . . . . . . 3 . . . . . . . 4 . 2 . Machines | -11 -10 -10 -9 -9 -9 -8 -8 -7 -7 -7 -7 -6 -6 -6 -5 -5 -5 -5 -4 -4 ---------- Run | Jun Mat Min Mat Min Exi Min Mat Fac Low Low Dat Pro Fac DSF Fac Upp Upp Zhi Pro Fac Machines Disabled 15 | . . . . . . . 8 4 . . . 1 . . . . 1 1 . . Max in Single Turn 3 | . . . . . . . 1 3 . . . . . . . . 1 1 . . Garrison Access 1 | . . . . . . . . 1 . . . . . . . . . . . . Machines Repaired . | . . . . . . . . . . . . . . . . . . . . . Machines Sabotaged . | . . . . . . . . . . . . . . . . . . . . . Overloaded Fab Kills . | . . . . . . . . . . . . . . . . . . . . . Hacking | -11 -10 -10 -9 -9 -9 -8 -8 -7 -7 -7 -7 -6 -6 -6 -5 -5 -5 -5 -4 -4 --------- Run | Jun Mat Min Mat Min Exi Min Mat Fac Low Low Dat Pro Fac DSF Fac Upp Upp Zhi Pro Fac Machines Accessed 49 | . 2 . 5 . 2 . 7 11 1 1 4 . 2 . 3 . 1 9 . 1 Terminals 19 | . 2 . 3 . . . 5 3 . 1 . . 1 . 3 . . . . 1 Fabricators 2 | . . . . . . . . 2 . . . . . . . . . . . . Repair Stations 5 | . . . 1 . . . 1 2 . . . . 1 . . . . . . . Recycling Units . | . . . . . . . . . . . . . . . . . . . . . Scanalyzers 3 | . . . 1 . . . 1 1 . . . . . . . . . . . . Garrison Access 3 | . . . . . . . . 3 . . . . . . . . . . . . Total Hacks 164 | . 6 . 13 . 2 . 17 27 2 3 31 . 4 . 8 . 1 48 . 2 Successful 133 | . 1 . 9 . 2 . 13 17 2 3 31 . 3 . 3 . 1 48 . . Failed 31 | . 5 . 4 . . . 4 10 . . . . 1 . 5 . . . . 2 Catastrophic 3 | . . . . . . . . 1 . . . . . . 2 . . . . . Database Lockouts . | . . . . . . . . . . . . . . . . . . . . . Manual 26 | . 3 . . . 1 . 8 6 1 . . . . . 5 . . . . 2 Terminals 44 | . 6 . 6 . . . 9 8 . 3 . . 2 . 8 . . . . 2 Fabricators 3 | . . . . . . . . 3 . . . . . . . . . . . . Repair Stations 20 | . . . 5 . . . 5 8 . . . . 2 . . . . . . . Recycling Units . | . . . . . . . . . . . . . . . . . . . . . Scanalyzers 8 | . . . 2 . . . 3 3 . . . . . . . . . . . . Garrison Access 5 | . . . . . . . . 5 . . . . . . . . . . . . Terminal Hacks 97 | . . . 3 . 2 . 2 2 2 3 31 . 1 . 2 . 1 48 . . Record 54 | . . . . . 1 . . . 2 3 11 . . . . . 1 36 . . Part Schematic 15 | . . . . . . . . . . . 11 . . . . . . 4 . . Robot Schematic 6 | . . . . . . . . . . . 6 . . . . . . . . . Robot Analysis 5 | . . . . . . . 1 . . . . . . . . . . 4 . . Prototype ID Bank 8 | . . . 1 . . . . . . . 3 . . . . . . 4 . . Open DSF 2 | . . . . . . . . . . . . . 1 . 1 . . . . . Branch Access Points 3 | . . . 1 . . . 1 1 . . . . . . . . . . . . Locate Traps 2 | . . . . . . . . 1 . . . . . . 1 . . . . . Hauler Manifests 1 | . . . 1 . . . . . . . . . . . . . . . . . EX-Prototype ID Bank 1 | . . . . . 1 . . . . . . . . . . . . . . . Fabricator Hacks 2 | . . . . . . . . 2 . . . . . . . . . . . . Load Schematic 1 | . . . . . . . . 1 . . . . . . . . . . . . Build 1 | . . . . . . . . 1 . . . . . . . . . . . . Repair Station Hacks 18 | . . . 4 . . . 4 8 . . . . 2 . . . . . . . Scan Component 9 | . . . 2 . . . 2 4 . . . . 1 . . . . . . . Repair 9 | . . . 2 . . . 2 4 . . . . 1 . . . . . . . Recycling Unit Hacks . | . . . . . . . . . . . . . . . . . . . . . Scanalyzer 7 | . . . 2 . . . 3 2 . . . . . . . . . . . . Insert Component 4 | . . . 1 . . . 2 1 . . . . . . . . . . . . Analyze 3 | . . . 1 . . . 1 1 . . . . . . . . . . . . Garrison Access Hacks 1 | . . . . . . . . 1 . . . . . . . . . . . . Seal Access 1 | . . . . . . . . 1 . . . . . . . . . . . . Unauthorized Hacks 8 | . 1 . . . . . 4 2 . . . . . . 1 . . . . . Terminals 8 | . 1 . . . . . 4 2 . . . . . . 1 . . . . . Botnet 8 | . 1 . . . . . 4 2 . . . . . . 1 . . . . . Fabricators . | . . . . . . . . . . . . . . . . . . . . . Repair Stations . | . . . . . . . . . . . . . . . . . . . . . Recycling Units . | . . . . . . . . . . . . . . . . . . . . . Scanalyzers . | . . . . . . . . . . . . . . . . . . . . . Garrison Access . | . . . . . . . . . . . . . . . . . . . . . Data Cores Recovered 1 | . . . . . . . . 1 . . . . . . . . . . . . Used . | . . . . . . . . . . . . . . . . . . . . . Hacking Detections 30 | . 2 . 4 . . . 7 11 . 1 . . 1 . 3 . . . . 1 Full Trace Events 5 | . . . . . . . 1 3 . 1 . . . . . . . . . . Feedback Events . | . . . . . . . . . . . . . . . . . . . . . Feedback Blocked . | . . . . . . . . . . . . . . . . . . . . . Robot Schematics Acquired 6 | . . . . . . . . . . . 6 . . . . . . . . . Robots Built . | . . . . . . . . . . . . . . . . . . . . . Authchips . | . . . . . . . . . . . . . . . . . . . . . Time . | . . . . . . . . . . . . . . . . . . . . . Total Robot Build Rating . | . . . . . . . . . . . . . . . . . . . . . Part Schematics Acquired 18 | . . . 1 . . . 1 1 . . 11 . . . . . . 4 . . Parts Built 2 | . . . . . . . . 2 . . . . . . . . . . . . Authchips . | . . . . . . . . . . . . . . . . . . . . . Time 36 | . . . . . . . . 36 . . . . . . . . . . . . Total Part Build Rating 6 | . . . . . . . . 6 . . . . . . . . . . . . Parts Repaired 9 | . . . 2 . . . 2 4 . . . . 1 . . . . . . . Time 315 | . . . 76 . . . 76 149 . . . . 14 . . . . . . . Parts Recycled . | . . . . . . . . . . . . . . . . . . . . . Recycled Matter . | . . . . . . . . . . . . . . . . . . . . . Retrieved Matter . | . . . . . . . . . . . . . . . . . . . . . Retrieved Components . | . . . . . . . . . . . . . . . . . . . . . Parts Scanalyzed 3 | . . . 1 . . . 1 1 . . . . . . . . . . . . Part Schematics Acquired 3 | . . . 1 . . . 1 1 . . . . . . . . . . . . Parts Damaged . | . . . . . . . . . . . . . . . . . . . . . Bothacking | -11 -10 -10 -9 -9 -9 -8 -8 -7 -7 -7 -7 -6 -6 -6 -5 -5 -5 -5 -4 -4 ------------ Run | Jun Mat Min Mat Min Exi Min Mat Fac Low Low Dat Pro Fac DSF Fac Upp Upp Zhi Pro Fac Used RIF Installer . | . . . . . . . . . . . . . . . . . . . . . Robots Hacked . | . . . . . . . . . . . . . . . . . . . . . Non-combat . | . . . . . . . . . . . . . . . . . . . . . Combat . | . . . . . . . . . . . . . . . . . . . . . Robot Hacks Applied . | . . . . . . . . . . . . . . . . . . . . . Relay Couplers Released . | . . . . . . . . . . . . . . . . . . . . . Fabnet Peak Effective % . | . . . . . . . . . . . . . . . . . . . . . Robots Rewired . | . . . . . . . . . . . . . . . . . . . . . Allies Hacked . | . . . . . . . . . . . . . . . . . . . . . Hacks Repelled . | . . . . . . . . . . . . . . . . . . . . . Allies | -11 -10 -10 -9 -9 -9 -8 -8 -7 -7 -7 -7 -6 -6 -6 -5 -5 -5 -5 -4 -4 -------- Run | Jun Mat Min Mat Min Exi Min Mat Fac Low Low Dat Pro Fac DSF Fac Upp Upp Zhi Pro Fac Total Allies 4 | . . . . 3 . . . . . . . 1 . . . . . . . . Largest Group 3 | . . . . 3 2 2 . . . . . 1 . . . . . . . . Highest-Rated Group 96 | . . . . 40 23 23 . . . . . 96 . . . . . . . . Highest-Rated Ally 96 | . . . . 16 16 16 . . . . . 96 . . . . . . . . Total Orders . | . . . . . . . . . . . . . . . . . . . . . Ally Attacks 69 | . . . . 30 . 14 . . . . . 25 . . . . . . . . Total Damage 1553 | . . . . 320 . 82 . . . . . 1151 . . . . . . . . Kills 16 | . . . . 3 . 7 . . . . . 6 . . . . . . . . Allies Corrupted . | . . . . . . . . . . . . . . . . . . . . . Allies Melted . | . . . . . . . . . . . . . . . . . . . . . Intel | -11 -10 -10 -9 -9 -9 -8 -8 -7 -7 -7 -7 -6 -6 -6 -5 -5 -5 -5 -4 -4 ------- Run | Jun Mat Min Mat Min Exi Min Mat Fac Low Low Dat Pro Fac DSF Fac Upp Upp Zhi Pro Fac Robot Analysis Total 5 | . . . . . . . 1 . . . . . . . . . . 4 . . Derelict Logs Recovered 9 | . . . . 1 . . . . 2 2 . 2 . . . . 1 . 1 . Drone Launches . | . . . . . . . . . . . . . . . . . . . . . Drone Recoveries . | . . . . . . . . . . . . . . . . . . . . . Exploration | -11 -10 -10 -9 -9 -9 -8 -8 -7 -7 -7 -7 -6 -6 -6 -5 -5 -5 -5 -4 -4 ------------- Run | Jun Mat Min Mat Min Exi Min Mat Fac Low Low Dat Pro Fac DSF Fac Upp Upp Zhi Pro Fac Turns Passed 17155 | 25 181 1578 523 1376 419 584 2218 1539 2357 2078 205 2573 464 55 67 205 171 266 104 167 Spaces Moved 10926 | 31 105 659 204 557 217 283 1111 1153 1196 1063 109 1274 420 91 199 585 509 367 315 478 Core 66 | 31 29 . . . . . . . . . . . . . . . . 6 . . Treads . | . . . . . . . . . . . . . . . . . . . . . Legs 7986 | . 76 659 204 557 217 283 1111 1153 1196 1063 109 1259 . . . . . 99 . . Wheels . | . . . . . . . . . . . . . . . . . . . . . Hover 315 | . . . . . . . . . . . . 15 300 . . . . . . . Flight 2559 | . . . . . . . . . . . . . 120 91 199 585 509 262 315 478 Fastest Speed 31 | 50 50 190 190 190 190 190 100 97 180 105 185 60 31 31 31 31 31 31 31 31 Average Speed 136 | 50 135 201 190 190 190 190 173 105 181 183 185 187 73 31 31 31 31 59 31 32 Slowest Speed 300 | 50 190 260 190 190 190 190 260 183 182 185 185 270 120 31 31 31 111 300 31 37 Overloaded Moves . | . . . . . . . . . . . . . . . . . . . . . Propulsion Burnouts . | . . . . . . . . . . . . . . . . . . . . . Robots Hopped 11 | . . . . . . . . . . . . . . . . 7 . . . 4 Cave-ins Triggered . | . . . . . . . . . . . . . . . . . . . . . Teleports 1 | . . . . . . . . . . . . . . . . . . 1 . . Exploration Rate (%) 56 | 4 27 95 21 93 59 60 69 30 97 98 71 97 10 66 9 73 72 63 53 16 Regions Visited 20 Branch Regions 12 Pre-discovered Areas 7 | . . 1 . . 1 . . . . . 1 1 . . . . . 3 . . Known Exits Taken 5 | . . . 1 . . . . 1 . . 1 . 1 . 1 . . . . . Unknown Exits Taken 14 | 1 1 1 . 1 1 1 1 . 1 1 . 1 . . . 1 1 1 1 . Scrap Searched 15 | . . 1 . 3 . 1 . . 1 3 . 1 . . . 1 4 . . . Spaces Dug 4 | . . . . . . . . . 1 3 . . . . . . . . . . Terrain Destroyed 130 | . . . 2 3 . 2 99 20 1 3 . . . . . . . . . . Melee 4 | . . . . . . . . . 1 3 . . . . . . . . . . Projectile 97 | . . . 2 3 . 2 82 8 . . . . . . . . . . . . AOE 29 | . . . . . . . 17 12 . . . . . . . . . . . . Terrain Rammed . | . . . . . . . . . . . . . . . . . . . . . Walls Destroyed . | . . . . . . . . . . . . . . . . . . . . . Machines Disabled . | . . . . . . . . . . . . . . . . . . . . . Actions | -11 -10 -10 -9 -9 -9 -8 -8 -7 -7 -7 -7 -6 -6 -6 -5 -5 -5 -5 -4 -4 --------- Run | Jun Mat Min Mat Min Exi Min Mat Fac Low Low Dat Pro Fac DSF Fac Upp Upp Zhi Pro Fac Total 12776 | 39 124 897 304 863 227 321 1322 1464 1345 1171 113 1371 572 117 203 600 518 406 320 479 Wait 1184 | . 1 213 77 276 . 30 108 194 72 40 . 9 134 1 1 22 . . 6 . Move 10888 | 30 104 658 203 556 216 282 1110 1152 1195 1062 108 1273 419 90 198 573 508 366 314 471 Hop 7 | . . . . . . . . . . . . . . . . 4 . . . 3 Pick Up 99 | 6 1 12 5 11 3 . 15 11 8 13 1 3 3 1 . . 3 3 . . Fast Attach 56 | 2 . . . 1 . 1 11 8 . 2 . . 11 2 2 . . 14 . 2 Attach 54 | 1 4 1 1 2 . . 5 5 7 2 2 20 . . . 1 2 1 . . Detach 8 | . . . . . . . . . 4 . . 1 . . 1 . 1 1 . . Swap 43 | . . 3 . 3 1 1 5 3 14 5 1 2 1 . . . 2 2 . . Drop 87 | . 1 3 . 7 7 1 19 9 1 13 1 1 4 2 1 . 1 15 . 1 Fire 308 | . 13 7 18 7 . 6 49 82 43 27 . 55 . . . . 1 . . . Melee 21 | . . . . . . . . . 1 7 . 7 . . . . . 4 . 2 Ram . | . . . . . . . . . . . . . . . . . . . . . Kick . | . . . . . . . . . . . . . . . . . . . . . Crush . | . . . . . . . . . . . . . . . . . . . . . Escape Stasis 18 | . . . . . . . . . . . . . . 18 . . . . . . Rewire . | . . . . . . . . . . . . . . . . . . . . . Trap 3 | . . . . . . . . . . . . . . 3 . . . . . . Miscellaneous . | . . . . . . . . . . . . . . . . . . . . . Route ------- -11/Junkyard -10/Materials -10/Mines (discovered 2 exits: *Mat x2) -9/Materials (discovered 2 exits: *Min / Sto) -9/Mines (discovered 3 exits: *Mat x2 / *Exi) -9/Exiles -8/Mines (discovered 2 exits: *Mat x2) -8/Materials -7/Factory (discovered 2 exits: *Low x2) -7/Lower Caves -7/Lower Caves (discovered 2 exits: *Fac / *Dat) -7/Data Miner -6/Proximity Caves -6/Factory (discovered 3 exits: [*Low] / Ext / DSF) -6/DSF -5/Factory (discovered 2 exits: *Upp x2) -5/Upper Caves -5/Upper Caves -5/Zhirov -4/Proximity Caves -4/Factory History --------- Turn | Location | Event 14 | -11/Junkyard | Discovered new exit (range 16) 26 | -11/Junkyard | Entered Materials 187 | -10/Materials | Discovered new exit (range 5) 207 | -10/Materials | Entered Mines 208 | -10/Mines | Learned location of Storage (-9) 302 | -10/Mines | Discovered new exit (range 15) 310 | -10/Mines | Build established: Mutant 359 | -10/Mines | Excavation squad dispatched 359 | -10/Mines | A large section of the Mines collapsed 1080 | -10/Mines | Discovered new exit (range 15) 1187 | -10/Mines | A weapon hastily lodged in a ceiling crevice suddenly fell to the ground 1785 | -10/Mines | Entered Materials 1785 | -9/Materials | Evolved 2 slots: Propulsion x1, Utility x1 1955 | -9/Materials | Repaired Katana 1994 | -9/Materials | Repaired Imp. Power Shielding 2012 | -9/Materials | Identified exit to Mines 2012 | -9/Materials | Identified exit to Storage 2308 | -9/Materials | Entered Mines 2510 | -9/Mines | Assisted by bots powering up and referring to "LRC-V3" 2657 | -9/Mines | Assembled infested the area 3065 | -9/Mines | Learned Materials emergency access door positions 3126 | -9/Mines | Discovered new exit (range 8) 3146 | -9/Mines | Received a Rocket Launcher from a helpful Derelict 3171 | -9/Mines | Discovered new exit (range 3) 3674 | -9/Mines | Deemed a non-threat by the Exiles lab entrance 3674 | -9/Mines | Discovered new exit (range 5) 3684 | -9/Mines | Entered Exiles 3684 | -9/Exiles | Accompanied by 2 allies 3730 | -9/Exiles | Met 8R-AWN 3764 | -9/Exiles | Met EX-HEX 3816 | -9/Exiles | Met EX-BIN 3836 | -9/Exiles | Aligned with FarCom system 3838 | -9/Exiles | Given EX-Vault access code 3882 | -9/Exiles | Opened EX-Vault 3907 | -9/Exiles | Found Skeleton Box 3915 | -9/Exiles | Found AWS/Gauss 3919 | -9/Exiles | Found XL Autogun Array 3960 | -9/Exiles | Warned to stay clear of 0b10 Research branches 4012 | -9/Exiles | Met EX-DEC 4023 | -9/Exiles | Learned location of Zion (-6) 4082 | -9/Exiles | Discovered new exit (range 12) 4103 | -9/Exiles | Stole three prototypes: Skeleton Box, AWS/Gauss, XL Autogun Array 4103 | -9/Exiles | Entered Mines 4103 | -8/Mines | Accompanied by 2 allies 4254 | -8/Mines | Discovered new exit (range 8) 4490 | -8/Mines | Discovered new exit (range 12) 4517 | -8/Mines | Build established: Scavenger-Mutant 4687 | -8/Mines | Entered Materials 4687 | -8/Materials | Evolved 2 slots: Utility x1, Weapon x1 4976 | -8/Materials | Build established: Gunner 5141 | -8/Materials | Discovered new exit (range 14) 5159 | -8/Materials | Destroyed 11 combat bots 5706 | -8/Materials | Build established: Scavenger-Gunner 6191 | -8/Materials | Repaired VSS Leg 6230 | -8/Materials | Repaired Carbon-fiber Leg 6287 | -8/Materials | First assault squad dispatched 6652 | -8/Materials | Build established: Mutant 6769 | -8/Materials | Sterilization system engaged 6769 | -8/Materials | Non-combat units ordered to evacuate 6869 | -8/Materials | Combat units ordered to evacuate 6905 | -8/Materials | Entered Factory 6905 | -7/Factory | Evolved 2 slots: Propulsion x1, Weapon x1 6907 | -7/Factory | FarCom data flow suspended 7088 | -7/Factory | Build established: Scavenger-Gunner 7401 | -7/Factory | Destroyed 7 combat bots 7546 | -7/Factory | Repaired VSS Leg 7584 | -7/Factory | Repaired VSS Leg 7623 | -7/Factory | Repaired VSS Leg 7702 | -7/Factory | Fabricated VSS Leg? 7705 | -7/Factory | First assault squad dispatched 8284 | -7/Factory | Identified exit to Lower Caves 8410 | -7/Factory | Repaired Cld. Pulse Rifle 8444 | -7/Factory | Entered Lower Caves 8444 | -7/Lower Caves | Spotted V0-A9O(f) 8445 | -7/Lower Caves | Encountered a Master Thief 8449 | -7/Lower Caves | Skeleton Box stolen by Master Thief 8788 | -7/Lower Caves | Acquired the password to a Derelict Tinkerer's latest research 8801 | -7/Lower Caves | Found Prototype Special Weapon 8803 | -7/Lower Caves | Identified Molecular Deconstructor 8992 | -7/Lower Caves | Caught by Unaware searching for contraband prototypes 9045 | -7/Lower Caves | Caught by Unaware searching for contraband prototypes 9413 | -7/Lower Caves | Discovered new exit (range 5) 9782 | -7/Lower Caves | Learned 4 Factory zone layouts 9916 | -7/Lower Caves | Learned 8 Factory zone layouts 10801 | -7/Lower Caves | Entered another Lower Caves area 10812 | -7/Lower Caves | Discovered new exit (range 5) 10975 | -7/Lower Caves | Attracted the attention of an 0b10 base 11002 | -7/Lower Caves | Learned Research trap positions 11284 | -7/Lower Caves | Encountered a Warlord checkpoint 12149 | -7/Lower Caves | Learned Factory stockpile data 12346 | -7/Lower Caves | Spotted OR-MA1(f) 12348 | -7/Lower Caves | Encountered a Master Thief 12348 | -7/Lower Caves | Spotted 5Z-NB8(f) 12349 | -7/Lower Caves | Encountered a Master Thief 12350 | -7/Lower Caves | Spotted PE-8LD(f) 12351 | -7/Lower Caves | Encountered a Master Thief 12351 | -7/Lower Caves | Spotted YD-QKJ(f) 12351 | -7/Lower Caves | Molecular Deconstructor stolen by Master Thief 12351 | -7/Lower Caves | Neutrino Core stolen by Master Thief 12352 | -7/Lower Caves | Encountered a Master Thief 12352 | -7/Lower Caves | Neutrino Core stolen by Master Thief 12352 | -7/Lower Caves | Mic. Fission Core stolen by Master Thief 12353 | -7/Lower Caves | Destroyed 5Z-NB8(f) 12359 | -7/Lower Caves | Destroyed YD-QKJ(f) 12429 | -7/Lower Caves | Discovered new exit (range 15) 12879 | -7/Lower Caves | Entered Data Miner 12880 | -7/Data Miner | Identified exit to Proximity Caves 12920 | -7/Data Miner | Met Data Miner 12957 | -7/Data Miner | Learned location of Section 7 (-2) 12957 | -7/Data Miner | Acquired the access code to Warlord's prototype stash 13034 | -7/Data Miner | Received God Mode back door access code from Data Miner 13084 | -7/Data Miner | Entered Proximity Caves 13239 | -6/Proximity Caves | Attracted the attention of an 0b10 checkpoint 13240 | -6/Proximity Caves | Escorted by Enhanced Grunt 13714 | -6/Proximity Caves | Discovered new exit (range 11) 13797 | -6/Proximity Caves | Attracted the attention of an 0b10 outpost 13854 | -6/Proximity Caves | Lost 9 parts (1p2n3u3w) 14001 | -6/Proximity Caves | Spotted B-75 Beast 14123 | -6/Proximity Caves | Destroyed B-75 Beast 14469 | -6/Proximity Caves | Build established: Scavenger-Tank 15129 | -6/Proximity Caves | Lost 6 parts (2n1u3w) 15545 | -6/Proximity Caves | Build established: Scavenger-Mutant 15608 | -6/Proximity Caves | Ambushed by research squad 15611 | -6/Proximity Caves | Core integrity fell below 50% 15657 | -6/Proximity Caves | Entered Factory 15657 | -6/Factory | Evolved 2 slots: Power x1, Utility x1 15658 | -6/Factory | Identified exit to Extension 15681 | -6/Factory | Lost 8 parts (1p4n3w) 15856 | -6/Factory | Repaired Gravmag System 15953 | -6/Factory | Build established: Mutant 16120 | -6/Factory | Discovered new exit (range 19) 16121 | -6/Factory | Identified exit to DSF 16121 | -6/Factory | Entered DSF 16166 | -6/DSF | Discovered new exit (range 22) 16176 | -6/DSF | Entered Factory 16176 | -5/Factory | Evolved 2 slots: Utility x1, Weapon x1 16177 | -5/Factory | Identified exit to Upper Caves 16243 | -5/Factory | Entered Upper Caves 16293 | -5/Upper Caves | Attracted the attention of an 0b10 checkpoint 16373 | -5/Upper Caves | Build established: Sprinter 16380 | -5/Upper Caves | Spotted B-75 Beast 16389 | -5/Upper Caves | Discovered new exit (range 14) 16448 | -5/Upper Caves | Entered another Upper Caves area 16450 | -5/Upper Caves | Attracted the attention of an 0b10 checkpoint 16520 | -5/Upper Caves | Discovered new exit (range 12) 16543 | -5/Upper Caves | Learned Factory stockpile data 16550 | -5/Upper Caves | Found Alien Artifact 16551 | -5/Upper Caves | Identified Dimensional Node Initializer 16551 | -5/Upper Caves | Initialized slip node 16602 | -5/Upper Caves | Spotted B-75 Beast 16619 | -5/Upper Caves | Entered Zhirov 16619 | -5/Zhirov | Discovered new exit (range 3) 16628 | -5/Zhirov | Met Zhirov 16634 | -5/Zhirov | Learned location of Quarantine (-3) 16634 | -5/Zhirov | Learned location of Testing (-2) 16634 | -5/Zhirov | Learned location of Command (-1) 16641 | -5/Zhirov | Zhirov requested help retrieving the SGEMP Prototype 16647 | -5/Zhirov | Found Alien Artifact 16647 | -5/Zhirov | Identified Integrated Dissipator 16647 | -5/Zhirov | Installed Integrated Dissipator, increased core heat dissipation (+20) 16654 | -5/Zhirov | Found Alien Artifact 16654 | -5/Zhirov | Identified Transdimensional Reconstructor 16654 | -5/Zhirov | Warped through subspace 16885 | -5/Zhirov | Entered Proximity Caves 16967 | -4/Proximity Caves | Learned Research emergency access door positions 16984 | -4/Proximity Caves | Discovered new exit (range 16) 16986 | -4/Proximity Caves | Attracted the attention of an 0b10 checkpoint 16989 | -4/Proximity Caves | Entered Factory 16989 | -4/Factory | Evolved 2 slots: Propulsion x1, Utility x1 17156 | -4/Factory | Self-destructed Last Messages --------------- 17053_ K-01 Serf pushes H-77 Assassin. 17054_ K-01 Serf pushes Y-64 Sentinel. 17054_ K-01 Serf pushes H-77 Assassin. 17054_ K-01 Serf pushes Y-64 Sentinel. 17055_ K-01 Serf pushes H-77 Assassin. 17055_ K-01 Serf pushes Y-64 Sentinel. 17056_ K-01 Serf pushes H-77 Assassin. 17056_ K-01 Serf pushes Y-64 Sentinel. 17072_ Nuclear Pulse Thruster destroyed. 17098_ Slug penetrates Neutrino Reactor. 17117_ K-01 Serf collects debris. 17122_ Mak. Power Source destroyed. 17122_ Slug penetrates Scanalyzer. 17124_ ALERT: Security rotation in progress. 17125_ Slug penetrates Wall. 17129_ Penetrated by Slug. 17129_ Nuclear Pulse Thruster destroyed. 17129_ Penetrated by Slug. 17130_ Dropped Imp. Reaction Control System. 17156_ Nuclear Pulse Thruster destroyed. Map ----- +----------------------------------------------------+ | #??# """" """" # #???????##############? | | #??# """" """" # #???????# #?" | | #??# """" """" # #???????# ##"" | | #??# """" """" + #???????# ##"" | | #??# """" """" # #???????# ##"" | | #??# """" """" # #???????# ##"" | | #??# """" """" # #???????# ##"T | | +##### # #???????# ##"" | | !" # #???????# ##"" | | ## # #???????# ##"" | | ###############g #???????# ##"" | | #?????######??# #???????# ##" | | #####?????""""""??# #???????# ## | | ????????# """""""?# #???????#+##+############# | | ????????# """""""?# #???????# | | ????????# """"""" # #???????# | | ????????# #p #???????#"" | | ????????# + p #???????#"" | | ????????# # #???????#"T | | ????????# [ # #???????#"" | | ????????########### #####+###"" """ """ """ "" | | ???????????# """ """ """ "" | | ???????????# """ """ """ "" | | ???????????# "" """ """ "" | | ???????????# | | ???????????# @ | | ############ #####+#############+### ########+ | | # # ? #??????? | | ########## # # #??????? | | #????????# # """""" # #??????? | | # #????????# # """""" # #??????? | | #+########## # """""" # #??????? | | # # """""" # #??????? | | # # # ! #??????? | | # # """"""" # #??????? | | # # """"""" # #??????? | | # # """"""" # #??????? | | + # """"""" # #??????? | | # # ?# #??????? | | # ############?# #??????? | | # #? ??????????##########+##??????? | | # # "???????????????????# #???????? | | # # ????????????????????# #???????? | | # +?????????????????????# #???????? | | ############ #?????????????????????# #???????? | | ############ #?????????????????????# #???????? | | # #?????????????????????# #???????? | | # #?????????????????????# #???????? | | ? """ """ # ###########???????????# #???????? | | ? """ """ # # #???????????# #???????? | +----------------------------------------------------+ Best States ------------- Heat Dissipation 82 Coolant Potential 65 Energy Generation 25 Energy Capacity 325 Matter Stores 300 Matter Capacity 300 Sight Range 22 Robot Scan Range 15 Terrain Scan Density 10 Cloak Strength 3 Armor Coverage 150 Propulsion Shielding 66 Weapon Shielding 66 Evasion (%) 73 Targeting Accuracy 12 Armor Integrity Analysis 30 Offensive Hacking 10 Defensive Hacking 14 Item Schematics ----------------- Arm. Treads | -9/Materials | Scanalyzed Adv. Visual Processing Unit | -8/Materials | Scanalyzed VSS Leg | -7/Factory | Scanalyzed Combat Drone Bay | -7/Data Miner | Free Lgt. Regenerative Plating | -7/Data Miner | Free Biomechanical Wings | -7/Data Miner | Free Exp. Weapon Shielding | -7/Data Miner | Free Scatter Rocket Array | -7/Data Miner | Free Linear Gravjet | -7/Data Miner | Free Point Defense System | -7/Data Miner | Free Variable Charge Gun | -7/Data Miner | Free Imp. Component Analysis Suite | -7/Data Miner | Free Imp. System Shield | -7/Data Miner | Free Hvy. Disruptor Cannon | -7/Data Miner | Free Assault Drone Bay | -5/Zhirov | Free Exp. Heat Sink | -5/Zhirov | Free Exp. Optical Array | -5/Zhirov | Free Imp. Arc Thrower | -5/Zhirov | Free Robot Schematics ------------------ H-55 Commando | -7/Data Miner | Free A-15 Conveyor | -7/Data Miner | Free Y-54 Guardian | -7/Data Miner | Free M-14 Sweeper | -7/Data Miner | Free I-36 Angel | -7/Data Miner | Free B-48 Gladiator | -7/Data Miner | Free Fabricated ------------ VSS Leg | x2 | -7/Factory Alien Tech Used ----------------- Dimensional Node Initializer Integrated Dissipator Transdimensional Reconstructor Achievements -------------- None Challenges ------------ None Game ------ Seed LongswordSniperStick Manual? 0 Play Time 01:58:58 Cumulative 117.6 hours Start 2023.11.24 @ 15:51:24 End 2023.11.24 @ 21:50:10 Sessions 1 Manual Loads 0 Difficulty Rogue Special Mode None Game No. 182 Rogue 179 Adventurer 3 Explorer 0 Win Type - Total 0 Types 0/0/0/0/0/0/0/0/0 Lore% 44 Gallery% 60 Achievement% 41 Wizard Run 0 Options --------- ASCII 0 Keyboard 0 Movement Mouse Keybinds 0 Fullscreen 2 Font 18/SmallcapsGlow Map View 76x50 Tactical HUD 1 Map Filters NONE Filters NONE Steam 1 RUN: 3286a4f3-a00f-4753-bead-7f1e777a69b2